bitfinex/quotes_BTCUSD_20251027
["timestamp","ask_amount","ask_price","bid_price","bid_amount"]
[1761537297246,0.00210716,114960.0,114950.0,1.91399462]
[1761537297456,0.00210716,114960.0,114950.0,2.05105062]
[1761537297670,0.00210716,114960.0,114950.0,2.11341708]
[1761537299358,0.00210716,114960.0,114950.0,1.90513708]
[1761537299552,0.00210716,114960.0,114950.0,2.11337708]
[1761537300759,0.00210716,114960.0,114950.0,1.12950964]
[1761537301055,0.00210716,114960.0,114950.0,1.62085308]
[1761537301394,0.00210716,114960.0,114950.0,1.65703536]
[1761537301606,0.00210716,114960.0,114950.0,1.97632108]
[1761537302046,0.00210716,114960.0,114950.0,1.65703536]
[1761537302246,0.00210716,114960.0,114950.0,1.97632108]
[1761537302480,0.00210716,114960.0,114950.0,1.65703536]
[1761537304850,0.00210716,114960.0,114950.0,1.97632108]
[1761537306878,0.00210716,114960.0,114950.0,1.95022788]
[1761537307541,0.00210716,114960.0,114950.0,1.63094216]
[1761537308331,0.00210716,114960.0,114950.0,1.9428231]
[1761537308763,0.00210716,114960.0,114950.0,1.96891387]
[1761537312579,0.00210716,114960.0,114950.0,1.64962815]
[1761537312814,0.00210716,114960.0,114950.0,1.44962815]
[1761537313019,0.00210716,114960.0,114950.0,1.64962815]
[1761537313633,0.00210716,114960.0,114950.0,1.62353738]
[1761537319422,0.00210716,114960.0,114950.0,1.30425166]
[1761537319629,0.00210716,114960.0,114950.0,1.62353738]
[1761537322301,0.00210716,114960.0,114950.0,1.56117092]
[1761537327974,0.00210716,114960.0,114950.0,1.15293092]
[1761537328182,0.00210716,114960.0,114950.0,1.62363089]
[1761537328392,0.00210716,114960.0,114950.0,1.42363089]
[1761537328597,0.00210716,114960.0,114950.0,1.62363089]
[1761537328820,0.00210716,114960.0,114950.0,1.42363089]
[1761537330315,0.00210716,114960.0,114950.0,1.62363089]
[1761537330512,0.00210716,114960.0,114950.0,1.42363089]
[1761537330720,0.00210716,114960.0,114950.0,1.62363089]
[1761537332366,0.00210716,114960.0,114950.0,1.10434517]
[1761537332567,0.00210716,114960.0,114950.0,1.42363089]
[1761537332984,0.00210716,114960.0,114950.0,1.62363089]
[1761537333649,0.00210716,114960.0,114950.0,1.42363089]
[1761537350339,0.00210716,114960.0,114950.0,1.36113092]
[1761537355854,0.00210716,114960.0,114950.0,1.76035844]
[1761537360033,0.00083038,114960.0,114950.0,1.76035844]
[1761537362379,0.00083038,114960.0,114950.0,2.91549664]
[1761537362547,0.00083038,114960.0,114950.0,2.33415764]
[1761537362745,0.00083038,114960.0,114950.0,2.34132201]
[1761537363107,0.00083038,114960.0,114950.0,2.25415201]
[1761537364291,0.00083038,114960.0,114950.0,2.08640301]
[1761537364649,0.00083038,114960.0,114950.0,1.86449801]
[1761537366162,0.00083038,114960.0,114950.0,1.90181481]
[1761537366355,0.00083038,114960.0,114950.0,2.04617481]
[1761537366683,0.00083038,114960.0,114950.0,2.10177481]
[1761537366834,0.00083038,114960.0,114950.0,2.07568444]
[1761537367826,0.00083038,114960.0,114950.0,1.71642782]
[1761537368695,0.00083038,114960.0,114950.0,2.07568444]
[1761537370692,0.00083038,114960.0,114950.0,1.3571712]
[1761537370892,0.00083038,114960.0,114950.0,2.07568444]
[1761537376022,0.00083038,114960.0,114950.0,1.06801966]
[1761537376271,0.00083038,114960.0,114950.0,1.46361966]
[1761537377263,0.00083038,114960.0,114950.0,1.40106182]
[1761537380397,0.02566287,114970.0,114960.0,0.17397355]
[1761537380607,0.19962129,114970.0,114960.0,0.32808758]
[1761537380819,0.55887791,114970.0,114960.0,0.24237901]
[1761537381485,0.19962129,114970.0,114960.0,0.24237901]
[1761537381704,0.55887791,114970.0,114960.0,0.24237901]
[1761537381935,0.55887791,114970.0,114960.0,0.15356]
[1761537382163,1.25813453,114970.0,114960.0,0.001]
[1761537382379,0.89887791,114970.0,114960.0,0.001]
[1761537382612,0.90287791,114970.0,114960.0,0.001]
[1761537382825,0.17397355,114960.0,114950.0,0.15256]
[1761537383026,0.53323017,114960.0,114950.0,0.15256]
[1761537383495,0.53323017,114960.0,114930.0,0.06424953]
[1761537383496,0.17400382,114940.0,114930.0,0.06424953]
[1761537383708,0.17405247,114940.0,114930.0,0.29801901]
[1761537384349,0.20015521,114940.0,114930.0,0.29801901]
[1761537384892,0.20015521,114940.0,114930.0,0.47203797]
[1761537385769,0.20015521,114940.0,114930.0,0.29901901]
[1761537385978,0.20015521,114940.0,114930.0,0.47303797]
[1761537386617,0.20515521,114940.0,114930.0,0.29901901]
[1761537387410,0.20515521,114940.0,114930.0,0.3078781]
[1761537389244,0.20515521,114940.0,114930.0,0.48189706]
[1761537392640,0.03115139,114940.0,114930.0,0.48189706]
[1761537392835,0.20515521,114940.0,114930.0,0.48189706]
[1761537395237,0.20515521,114940.0,114930.0,0.3078781]
[1761537396454,0.20515521,114940.0,114930.0,0.48189706]
[1761537401112,0.20515521,114940.0,114930.0,0.84115368]
[1761537404099,0.20515521,114940.0,114930.0,0.48189706]
[1761537409282,0.03115139,114940.0,114930.0,0.48189706]
[1761537409479,0.03115139,114940.0,114930.0,0.84115368]
[1761537411341,0.03115139,114940.0,114930.0,0.88805135]
[1761537411540,0.03115139,114940.0,114930.0,0.84115368]
[1761537412860,0.03115139,114940.0,114930.0,0.48189706]
[1761537413054,0.00504865,114940.0,114930.0,0.84115368]
[1761537415955,0.00504865,114940.0,114930.0,0.48189706]
[1761537416998,0.00504865,114940.0,114930.0,1.37768238]
[1761537417142,0.00504865,114940.0,114930.0,1.44477856]
[1761537418419,4.865e-05,114940.0,114930.0,1.44477856]
[1761537418594,4.865e-05,114940.0,114930.0,1.44377856]
[1761537418799,0.00104865,114940.0,114930.0,1.44377856]
[1761537418981,0.00104865,114940.0,114930.0,1.44477856]
[1761537422123,0.00033733,114940.0,114930.0,1.44477856]
[1761537423271,0.00033733,114940.0,114930.0,0.8264354]
[1761537425351,0.00033733,114940.0,114930.0,1.14603844]
[1761537428922,0.00033733,114940.0,114930.0,0.8264354]
[1761537429186,0.00033733,114940.0,114930.0,0.87328263]
[1761537435239,0.17434115,114940.0,114930.0,0.72068263]
[1761537435440,0.17434115,114940.0,114930.0,0.35926367]
[1761537435584,0.17434115,114940.0,114930.0,0.35472533]
[1761537436439,0.17434115,114940.0,114930.0,0.3078781]
[1761537437253,0.17434115,114940.0,114930.0,0.48189706]
[1761537441334,0.17434115,114940.0,114930.0,0.3078781]
[1761537441460,0.17434115,114940.0,114930.0,0.48189706]
[1761537444151,0.00033733,114940.0,114930.0,0.48189706]
[1761537444367,0.00033733,114940.0,114930.0,0.52874429]
[1761537444771,0.17434115,114940.0,114930.0,0.52874429]
[1761537448094,0.17434115,114940.0,114930.0,0.48189706]
[1761537451182,0.17434115,114940.0,114930.0,0.52874429]
[1761537451391,0.00033733,114940.0,114930.0,0.52874429]
[1761537459156,0.00033733,114940.0,114930.0,0.84834733]
[1761537459635,0.00033733,114940.0,114930.0,0.52874429]
[1761537465179,0.00033733,114940.0,114930.0,0.84834733]
[1761537468193,0.17434115,114940.0,114930.0,0.04784723]
[1761537468367,0.49394419,114940.0,114930.0,0.1536]
[1761537468789,0.17434115,114940.0,114930.0,0.1536]
[1761537471166,0.17434115,114940.0,114930.0,0.001]
[1761537475711,0.53400148,114940.0,114930.0,0.001]
[1761537477892,0.17434115,114940.0,114930.0,0.001]
[1761537478098,0.53400148,114940.0,114930.0,0.001]
[1761537479257,0.53400148,114940.0,114930.0,0.17501896]
[1761537480395,0.17434115,114940.0,114930.0,0.17501896]
[1761537480616,0.53400148,114940.0,114930.0,0.17501896]
[1761537481609,0.00033733,114940.0,114930.0,0.6244983]
[1761537482071,0.53400148,114940.0,114930.0,0.001]
[1761537486018,0.00033733,114940.0,114930.0,1.00156052]
[1761537486220,0.00033733,114940.0,114930.0,0.6244983]
[1761537487100,0.00033733,114940.0,114930.0,0.6801383]
[1761537487435,0.00033733,114940.0,114930.0,0.72698553]
[1761537495251,0.00033733,114940.0,114930.0,0.3673252]
[1761537495547,0.00033733,114940.0,114930.0,0.32047797]
[1761537495926,0.53400148,114940.0,114930.0,0.001]
[1761537496104,0.53400148,114940.0,114930.0,0.1536]
[1761537498442,0.17434115,114940.0,114930.0,0.1536]
[1761537498636,0.53400148,114940.0,114930.0,0.1536]
[1761537499694,0.17434115,114940.0,114930.0,0.1536]
[1761537500135,0.53400148,114940.0,114930.0,0.1536]
[1761537501008,0.17434115,114940.0,114930.0,0.1536]
[1761537501322,0.53400148,114940.0,114930.0,0.1536]
[1761537501925,0.53400148,114940.0,114930.0,0.001]
[1761537502125,0.53400148,114940.0,114930.0,0.1538]
[1761537503698,0.17434115,114940.0,114930.0,0.1538]
[1761537505081,0.53400148,114940.0,114930.0,0.1538]
[1761537505285,0.17434115,114940.0,114930.0,0.1538]
[1761537505493,0.53400148,114940.0,114930.0,0.1538]
[1761537510246,0.17434115,114940.0,114930.0,0.1538]
[1761537510485,0.53400148,114940.0,114930.0,0.1538]
[1761537511693,0.53400148,114940.0,114930.0,0.001]
[1761537514069,1.38662181,114940.0,114930.0,0.001]
[1761537514269,1.02696148,114940.0,114930.0,0.001]
[1761537514568,1.05306978,114940.0,114930.0,0.001]
[1761537514872,0.17404925,114910.0,114900.0,0.1704603]
[1761537515106,0.17404925,114910.0,114900.0,0.26027931]
[1761537516250,0.17404925,114910.0,114900.0,0.26127931]
[1761537517381,0.17404925,114910.0,114900.0,0.26427931]
[1761537517761,0.17404925,114910.0,114900.0,0.43834371]
[1761537520010,0.17404925,114910.0,114900.0,0.25565609]
[1761537520011,0.53370958,114910.0,114900.0,0.25565609]
[1761537520981,0.53370958,114910.0,114900.0,0.25465609]
[1761537521210,0.17404925,114910.0,114900.0,0.25265609]
[1761537521356,0.53370958,114910.0,114900.0,0.25265609]
[1761537521561,0.17404925,114910.0,114900.0,0.25265609]
[1761537523114,0.53370958,114910.0,114900.0,0.25265609]
[1761537524189,0.53370958,114910.0,114900.0,0.24385901]
[1761537524615,0.02611044,114930.0,114900.0,1.13721647]
[1761537524868,0.02611044,114930.0,114920.0,1.32317378]
[1761537525049,0.02362025,114970.0,114940.0,0.17400041]
[1761537525050,0.17397482,114960.0,114940.0,0.17400041]
[1761537525356,0.17397482,114960.0,114950.0,0.24321901]
[1761537525357,0.17402352,114960.0,114950.0,0.24321901]
[1761537525503,0.53368385,114960.0,114950.0,0.24321901]
[1761537525909,0.53368385,114960.0,114930.0,0.17401891]
[1761537525910,0.17399988,114950.0,114930.0,0.17401891]
[1761537526206,0.53366021,114950.0,114940.0,0.24321901]
[1761537526533,0.17399988,114950.0,114940.0,0.41722283]
[1761537527546,0.17299988,114950.0,114940.0,0.24321901]
[1761537527761,0.53266021,114950.0,114940.0,0.24321901]
[1761537527960,0.53566021,114950.0,114940.0,0.24321901]
[1761537528444,0.53566021,114950.0,114940.0,0.24421901]
[1761537533029,0.87566021,114950.0,114940.0,0.24425901]
[1761537535767,0.83568108,114950.0,114940.0,0.24425901]
[1761537540384,0.17698869,114950.0,114940.0,0.001]
[1761537541206,0.49666989,114950.0,114940.0,0.001]
[1761537541412,0.17698869,114950.0,114940.0,0.001]
[1761537547516,0.49666989,114950.0,114940.0,0.001]
[1761537566081,0.17698869,114950.0,114940.0,0.001]
[1761537566305,0.49666989,114950.0,114940.0,0.001]
[1761537567587,0.17698869,114950.0,114940.0,0.001]
[1761537567745,0.49666989,114950.0,114940.0,0.001]
[1761537569426,0.17698869,114950.0,114940.0,0.001]
[1761537569609,0.49666989,114950.0,114940.0,0.001]
[1761537593243,0.17698869,114950.0,114940.0,0.001]
[1761537593944,0.20309379,114950.0,114940.0,0.001]
[1761537597813,0.56270472,114950.0,114940.0,0.001]
[1761537598652,0.20309379,114950.0,114940.0,0.001]
[1761537599590,0.20309379,114950.0,114940.0,0.36061093]
[1761537599996,0.20309379,114950.0,114940.0,0.51357093]
[1761537600117,0.20309379,114950.0,114940.0,0.60338994]
[1761537604298,0.20309379,114950.0,114940.0,0.24377901]
[1761537604920,0.20309379,114950.0,114940.0,0.77739376]
[1761537605922,0.0291051,114950.0,114940.0,0.77739376]
[1761537606324,0.003,114950.0,114940.0,0.85034066]
[1761537606770,0.003,114950.0,114940.0,1.05034066]
[1761537609949,0.003,114950.0,114940.0,0.85034066]
[1761537611292,0.003,114950.0,114940.0,1.05034066]
[1761537611696,0.00260504,114950.0,114940.0,0.85034066]
[1761537613264,0.00242741,114950.0,114940.0,0.85034066]
[1761537614434,0.001436,114950.0,114940.0,0.85034066]
[1761537614910,0.001436,114950.0,114940.0,0.69738066]
[1761537615102,0.001436,114950.0,114940.0,0.85909343]
[1761537616436,0.0009408,114950.0,114940.0,0.4994825]
[1761537616646,0.0009408,114950.0,114940.0,0.85909343]
[1761537616843,0.17492949,114950.0,114940.0,0.11691868]
[1761537617066,0.17492949,114950.0,114940.0,0.26983868]
[1761537617732,0.17485606,114950.0,114940.0,0.62944961]
[1761537618310,0.17436086,114950.0,114940.0,0.62944961]
[1761537620101,0.17423781,114950.0,114940.0,0.62944961]
[1761537621083,0.17423781,114950.0,114940.0,0.26983868]
[1761537621290,0.17423781,114950.0,114940.0,0.62944961]
[1761537623228,0.17423781,114950.0,114940.0,0.24373901]
[1761537623405,0.17423781,114950.0,114940.0,0.15392]
[1761537623861,0.20034166,114950.0,114940.0,0.15392]
[1761537624071,0.20029304,114950.0,114940.0,0.15392]
[1761537624515,0.20029304,114950.0,114940.0,0.51353093]
[1761537626077,0.2002345,114950.0,114940.0,0.51353093]
[1761537630278,0.20008664,114950.0,114940.0,0.51353093]
[1761537631428,0.19993878,114950.0,114940.0,0.51353093]
[1761537633262,0.19969168,114950.0,114940.0,0.51353093]
[1761537634498,0.19944458,114950.0,114940.0,0.51353093]
[1761537638559,0.17402251,114960.0,114940.0,0.77735376]
[1761537638772,0.17328021,114960.0,114950.0,0.44942994]
[1761537638990,0.17328021,114960.0,114950.0,0.47553054]
[1761537639196,0.17328021,114960.0,114950.0,0.64951923]
[1761537639826,0.20896642,114970.0,114950.0,0.64951923]
[1761537640034,0.20896642,114970.0,114960.0,0.51253093]
[1761537641514,0.21196642,114970.0,114960.0,0.51253093]
[1761537642989,0.2119178,114970.0,114960.0,0.51253093]
[1761537643194,0.2089178,114970.0,114960.0,0.51253093]
[1761537643608,0.1828172,114970.0,114960.0,0.51253093]
[1761537644383,0.1888172,114970.0,114960.0,0.51253093]
[1761537645418,0.1888172,114970.0,114960.0,0.15292]
[1761537647533,0.18832208,114970.0,114960.0,0.15292]
[1761537649400,0.18823508,114970.0,114960.0,0.15292]
[1761537650161,0.18818647,114970.0,114960.0,0.15292]
[1761537651960,0.21428548,114970.0,114960.0,0.15292]
[1761537653326,0.21398881,114970.0,114960.0,0.15292]
[1761537653967,0.1878898,114970.0,114960.0,0.15292]
[1761537654364,0.1878898,114970.0,114960.0,0.51253093]
[1761537655527,0.1878898,114970.0,114960.0,0.15292]
[1761537655746,0.18764274,114970.0,114960.0,0.15292]
[1761537656588,0.1874463,114970.0,114960.0,0.15292]
[1761537657375,0.1874463,114970.0,114960.0,0.51253093]
[1761537657745,0.1874463,114970.0,114960.0,0.15292]
[1761537659319,0.18670312,114970.0,114960.0,0.15292]
[1761537660293,0.18670312,114970.0,114960.0,0.32689355]
[1761537660497,0.006,114970.0,114960.0,0.73621748]
[1761537661837,0.17394431,114980.0,114960.0,0.73621748]
[1761537662041,0.17394431,114980.0,114960.0,0.73721748]
[1761537662632,0.17394431,114980.0,114960.0,0.73621748]
[1761537662872,0.17395842,114970.0,114960.0,0.73621748]
[1761537663101,0.17395842,114970.0,114960.0,0.73721748]
[1761537663507,0.17394431,114980.0,114960.0,0.41771256]
[1761537663947,0.17395842,114970.0,114960.0,0.41771256]
[1761537664742,0.17395842,114970.0,114960.0,0.41671256]
[1761537664903,0.17395842,114970.0,114960.0,0.41771256]
[1761537665712,0.17395842,114970.0,114960.0,0.426318]
[1761537666712,0.17295307,114980.0,114960.0,0.426318]
[1761537667621,0.17295307,114980.0,114960.0,0.425318]
[1761537667977,0.17280524,114980.0,114960.0,0.426318]
[1761537669439,0.17280524,114980.0,114960.0,0.74582292]
[1761537671205,0.17231012,114980.0,114960.0,0.74582292]
[1761537674085,0.17131888,114980.0,114960.0,0.74582292]
[1761537674704,0.17131888,114980.0,114960.0,0.426318]
[1761537674902,0.17131888,114980.0,114960.0,0.74582292]
[1761537675805,0.17131888,114980.0,114960.0,0.426318]
[1761537676224,0.17131888,114980.0,114960.0,0.74582292]
[1761537677283,0.17131888,114980.0,114960.0,0.426318]
[1761537677522,0.17131888,114980.0,114960.0,0.74582292]
[1761537680566,0.17117105,114980.0,114960.0,0.74582292]
[1761537681687,0.17111177,114980.0,114960.0,0.77706923]
[1761537683141,0.17066534,114980.0,114960.0,0.77706923]
[1761537685394,0.17066534,114980.0,114960.0,0.82391646]
[1761537687035,0.17395842,114970.0,114960.0,0.82391646]
[1761537687838,0.17395842,114970.0,114960.0,0.82291646]
[1761537688057,0.17391232,114970.0,114960.0,0.82291646]
[1761537688265,0.17066534,114980.0,114960.0,0.50441154]
[1761537688464,0.17395842,114970.0,114960.0,0.50441154]
[1761537688695,0.17395842,114970.0,114960.0,0.32183255]
[1761537688884,0.49346334,114970.0,114960.0,0.03224631]
[1761537689117,0.49346334,114970.0,114960.0,0.001]
[1761537689314,0.49341373,114970.0,114960.0,0.15376]
[1761537689530,0.49341373,114970.0,114960.0,0.001]
[1761537689692,0.17390881,114970.0,114960.0,0.001]
[1761537689921,0.17397355,114960.0,114950.0,0.2084]
[1761537690112,0.17397355,114960.0,114950.0,0.4722077]
[1761537690524,0.17397355,114960.0,114950.0,0.4807546]
[1761537691779,0.17697355,114960.0,114950.0,0.4807546]
[1761537692513,0.17697355,114960.0,114950.0,0.30676591]
[1761537693135,0.17692494,114960.0,114950.0,0.29821901]
[1761537696814,0.17687633,114960.0,114950.0,0.29821901]
[1761537699442,0.17687633,114960.0,114950.0,0.2084]
[1761537699659,0.49638125,114960.0,114950.0,0.15276]
[1761537699867,0.17687633,114960.0,114950.0,0.15276]
[1761537701026,0.20297866,114960.0,114950.0,0.15276]
[1761537701456,0.20288043,114960.0,114950.0,0.15276]
[1761537702290,0.2027822,114960.0,114950.0,0.15276]
[1761537703532,0.17400382,114940.0,114930.0,0.24685201]
[1761537703733,0.17400382,114940.0,114930.0,0.48943102]
[1761537704430,0.17400382,114940.0,114930.0,0.80893594]
[1761537704756,0.1740017,114950.0,114930.0,0.80898464]
[1761537704966,0.1740017,114950.0,114940.0,0.08981901]
[1761537705795,0.1740017,114950.0,114940.0,0.42672431]
[1761537705964,0.1740017,114950.0,114940.0,0.40932393]
[1761537706396,0.1740017,114950.0,114940.0,0.08981901]
[1761537706602,0.1740017,114950.0,114940.0,0.10821939]
[1761537709206,0.1740017,114950.0,114940.0,0.09081901]
[1761537709410,0.17060907,114950.0,114940.0,0.09081901]
[1761537712455,0.17060907,114950.0,114940.0,0.001]
[1761537713900,0.17360907,114950.0,114940.0,0.001]
[1761537714309,0.17400382,114940.0,114930.0,0.2084487]
[1761537714519,0.17400382,114940.0,114930.0,0.29826771]
[1761537716731,0.17700382,114940.0,114930.0,0.29826771]
[1761537719742,0.17700382,114940.0,114930.0,0.65784389]
[1761537720810,0.17700382,114940.0,114930.0,0.83186285]
[1761537721261,0.17700382,114940.0,114930.0,0.29826771]
[1761537721673,0.17700382,114940.0,114930.0,0.65784389]
[1761537722474,0.17700382,114940.0,114930.0,0.29826771]
[1761537722692,0.17700382,114940.0,114930.0,0.65784389]
[1761537723987,0.17700382,114940.0,114930.0,0.29826771]
[1761537724188,0.17700382,114940.0,114930.0,0.65784389]
[1761537725959,0.17700382,114940.0,114930.0,0.29826771]
[1761537726177,0.17700382,114940.0,114930.0,0.65784389]
[1761537736794,0.17700382,114940.0,114930.0,0.29826771]
[1761537737003,0.17700382,114940.0,114930.0,0.65784389]
[1761537741428,0.17700382,114940.0,114930.0,0.70469112]
[1761537741769,0.17700382,114940.0,114930.0,0.64905112]
[1761537742671,0.17700382,114940.0,114930.0,0.28947494]
[1761537742781,0.17700382,114940.0,114930.0,0.24262771]
[1761537742980,0.17700382,114940.0,114930.0,0.60220389]
[1761537744508,0.17700382,114940.0,114930.0,1.18264626]
[1761537744734,0.003,114940.0,114930.0,1.18264626]
[1761537744944,0.003,114940.0,114930.0,1.20874743]
[1761537745980,0.17060907,114950.0,114930.0,1.20874743]
[1761537746193,0.17060907,114950.0,114940.0,0.46679557]
[1761537746326,0.17060907,114950.0,114940.0,0.44939519]
[1761537746753,0.17060907,114950.0,114940.0,0.08981901]
[1761537746935,0.17060907,114950.0,114940.0,0.44939519]
[1761537748468,0.17360907,114950.0,114940.0,0.44939519]
[1761537749575,0.17360907,114950.0,114940.0,0.50503519]
[1761537750798,0.17360907,114950.0,114940.0,0.14545901]
[1761537751084,0.17360907,114950.0,114940.0,0.50503519]
[1761537752015,0.17360907,114950.0,114940.0,0.14545901]
[1761537752188,0.17360907,114950.0,114940.0,0.50503519]
[1761537753857,0.17360907,114950.0,114940.0,0.14545901]
[1761537754099,0.17360907,114950.0,114940.0,0.50503519]
[1761537754575,0.17360907,114950.0,114940.0,0.44939519]
[1761537754806,0.17360907,114950.0,114940.0,0.65779519]
[1761537757111,0.17360907,114950.0,114940.0,0.44939519]
[1761537757441,0.17360907,114950.0,114940.0,0.65779519]
[1761537757648,0.17698869,114950.0,114940.0,0.83179901]
[1761537758050,0.17698869,114950.0,114940.0,0.87864624]
[1761537758971,0.17698869,114950.0,114940.0,0.51907006]
[1761537759202,0.17698869,114950.0,114940.0,0.87864624]
[1761537759380,0.17664235,114950.0,114940.0,0.83179901]
[1761537759581,0.17664235,114950.0,114940.0,0.65779519]
[1761537761919,0.17664235,114950.0,114940.0,0.29821901]
[1761537762137,0.17664235,114950.0,114940.0,0.65779519]
[1761537762944,0.17664235,114950.0,114940.0,0.29821901]
[1761537763157,0.17664235,114950.0,114940.0,0.65779519]
[1761537770270,0.17664235,114950.0,114940.0,0.29821901]
[1761537770454,0.17664235,114950.0,114940.0,0.65779519]
[1761537774034,0.17664235,114950.0,114940.0,0.29821901]
[1761537774256,0.17664235,114950.0,114940.0,0.65779519]
[1761537774643,0.17664235,114950.0,114940.0,0.68389566]
[1761537775482,0.17664235,114950.0,114940.0,0.32431948]
[1761537775695,0.17664235,114950.0,114940.0,0.68389566]
[1761537776221,0.17664235,114950.0,114940.0,0.32431948]
[1761537778162,0.17664235,114950.0,114940.0,0.68389566]
[1761537779579,0.17664235,114950.0,114940.0,0.32431948]
[1761537786901,0.17664235,114950.0,114940.0,0.29821901]
[1761537787498,0.17664235,114950.0,114940.0,0.24257901]
[1761537789343,0.17664235,114950.0,114940.0,0.28942624]
[1761537791167,0.17664235,114950.0,114940.0,0.24257901]
[1761537799914,0.17664235,114950.0,114940.0,0.08981901]
[1761537800031,0.17664235,114950.0,114940.0,0.29817901]
[1761537802506,0.17664235,114950.0,114940.0,0.08981901]
[1761537802711,0.17664235,114950.0,114940.0,0.29817901]
[1761537804148,0.17664235,114950.0,114940.0,0.08981901]
[1761537804353,0.17664235,114950.0,114940.0,0.29817901]
[1761537805369,0.17664235,114950.0,114940.0,0.61778467]
[1761537805570,0.17664235,114950.0,114940.0,0.6646319]
[1761537807190,0.17664235,114950.0,114940.0,0.83863572]
[1761537809487,0.00265366,114950.0,114940.0,0.83863572]
[1761537809722,0.17664235,114950.0,114940.0,0.83863572]
[1761537810357,0.00265366,114950.0,114940.0,0.83863572]
[1761537811948,0.17664235,114950.0,114940.0,0.83863572]
[1761537820694,0.00265366,114950.0,114940.0,0.83863572]
[1761537821095,0.17664235,114950.0,114940.0,0.83863572]
[1761537821677,0.00265366,114950.0,114940.0,0.83863572]
[1761537822248,0.17664235,114950.0,114940.0,0.83863572]
[1761537822451,0.00265366,114950.0,114940.0,0.83863572]
[1761537825431,0.17664235,114950.0,114940.0,0.83863572]
[1761537826033,0.17664235,114950.0,114940.0,0.13666624]
[1761537826241,0.17664235,114950.0,114940.0,0.31553939]
[1761537826395,0.17664235,114950.0,114940.0,0.29813901]
[1761537831997,0.17664235,114950.0,114940.0,0.24249901]
[1761537834631,0.17664235,114950.0,114940.0,0.28934624]
[1761537835240,0.17664235,114950.0,114940.0,0.24249901]
[1761537835442,0.17664235,114950.0,114940.0,0.28934624]
[1761537837933,0.17664235,114950.0,114940.0,0.24249901]
[1761537844451,0.53619323,114950.0,114940.0,0.24249901]
[1761537844645,0.17664235,114950.0,114940.0,0.24249901]
[1761537856325,0.17664235,114950.0,114940.0,0.29813901]
[1761537860295,0.53619323,114950.0,114940.0,0.29813901]
[1761537860417,0.53619323,114950.0,114940.0,0.08981901]
[1761537860651,0.53619323,114950.0,114940.0,0.25985939]
[1761537860852,0.53619323,114950.0,114940.0,0.24245901]
[1761537861053,0.17664235,114950.0,114940.0,0.24245901]
[1761537864558,0.53619323,114950.0,114940.0,0.24245901]
[1761537866273,0.53619323,114950.0,114940.0,0.08981901]
[1761537866475,0.53619323,114950.0,114940.0,0.25985939]
[1761537866686,0.53619323,114950.0,114940.0,0.24245901]
[1761537874735,0.17664235,114950.0,114940.0,0.24245901]
[1761537875566,0.53619323,114950.0,114940.0,0.24245901]
[1761537884595,0.17664235,114950.0,114940.0,0.24245901]
[1761537884749,0.53619323,114950.0,114940.0,0.24245901]
[1761537889842,0.17664235,114950.0,114940.0,0.24245901]
[1761537890273,0.53619323,114950.0,114940.0,0.24245901]
[1761537890901,0.53619323,114950.0,114930.0,4.87e-05]
[1761537890902,0.51400382,114940.0,114930.0,4.87e-05]
[1761537891122,0.91567857,114940.0,114930.0,0.08986771]
[1761537891335,0.8735547,114940.0,114930.0,0.08986771]
[1761537891756,0.89965789,114940.0,114930.0,0.08986771]
[1761537892845,0.90465789,114940.0,114930.0,0.08986771]
[1761537893053,0.89965789,114940.0,114930.0,0.08986771]
[1761537893454,0.20810701,114940.0,114930.0,0.08986771]
[1761537893638,0.72025789,114940.0,114930.0,0.08986771]
[1761537893849,0.72125789,114940.0,114930.0,0.08986771]
[1761537895633,0.56865789,114940.0,114930.0,0.08986771]
[1761537900116,0.56865789,114940.0,114930.0,0.1072696]
[1761537900921,0.56865789,114940.0,114930.0,0.08986771]
[1761537901595,0.20910701,114940.0,114930.0,0.60205859]
[1761537901797,0.009,114940.0,114930.0,1.37181071]
[1761537902848,0.17398869,114950.0,114930.0,1.33562843]
[1761537903050,0.17398869,114950.0,114940.0,0.64077409]
[1761537903191,0.18237854,114960.0,114940.0,0.62337371]
[1761537903529,0.18237854,114960.0,114950.0,0.17003886]
[1761537903752,0.18237854,114960.0,114950.0,0.25985787]
[1761537903939,0.18237854,114960.0,114950.0,0.24245901]
[1761537906498,0.18237854,114960.0,114950.0,0.24345901]
[1761537907127,0.17390881,114970.0,114950.0,0.4174477]
[1761537907330,0.17397355,114960.0,114950.0,0.15364]
[1761537907539,0.17397355,114960.0,114950.0,0.17103886]
[1761537908133,0.17397355,114960.0,114950.0,0.34502755]
[1761537908331,0.17397355,114960.0,114950.0,0.32762869]
[1761537910034,0.17397355,114960.0,114950.0,0.15364]
[1761537910670,0.17397355,114960.0,114950.0,0.17103886]
[1761537911859,0.17397355,114960.0,114950.0,0.15364]
[1761537913306,0.17397355,114960.0,114950.0,0.24345901]
[1761537917131,0.49351969,114960.0,114950.0,0.24345901]
[1761537917384,0.64611969,114960.0,114950.0,0.001]
[1761537918491,0.17398869,114950.0,114940.0,0.1526]
[1761537918717,0.17398869,114950.0,114940.0,0.24241901]
[1761537919375,0.17398869,114950.0,114940.0,0.08981901]
[1761537919807,0.17997355,114960.0,114950.0,0.17398869]
[1761537919808,0.17397355,114960.0,114950.0,0.17398869]
[1761537920071,0.17397355,114960.0,114950.0,0.4164077]
[1761537921590,0.18260673,114970.0,114950.0,0.4164077]
[1761537921739,0.17397355,114960.0,114950.0,0.32658869]
[1761537921937,0.17397355,114960.0,114950.0,0.4164077]
[1761537922142,0.17397355,114960.0,114950.0,0.4174077]
[1761537922344,0.17397355,114960.0,114950.0,0.44250456]
[1761537922788,0.17397355,114960.0,114950.0,0.44350456]
[1761537923116,0.17397355,114960.0,114950.0,0.44250456]
[1761537923523,0.17397355,114960.0,114950.0,0.44350456]
[1761537925766,0.18260673,114970.0,114950.0,0.44350456]
[1761537926013,0.18260673,114970.0,114960.0,0.08981901]
[1761537928578,0.18460673,114970.0,114960.0,0.08981901]
[1761537964009,0.50415287,114970.0,114960.0,0.08981901]
[1761537965360,0.18460673,114970.0,114960.0,0.08981901]
[1761537965589,0.50415287,114970.0,114960.0,0.08981901]
[1761537965791,0.18460673,114970.0,114960.0,0.08981901]
[1761537966041,0.54412216,114970.0,114960.0,0.08981901]
[1761537968494,0.54389167,114970.0,114960.0,0.08981901]
[1761537970995,0.56999003,114970.0,114960.0,0.08981901]
[1761537974165,0.2104746,114970.0,114960.0,0.08981901]
[1761537976227,0.56999003,114970.0,114960.0,0.08981901]
[1761537984056,0.2104746,114970.0,114960.0,0.08981901]
[1761537984274,0.56999003,114970.0,114960.0,0.08981901]
[1761537993366,0.2104746,114970.0,114960.0,0.08981901]
[1761537993587,0.56999003,114970.0,114960.0,0.08981901]
[1761538002191,0.2104746,114970.0,114960.0,0.08981901]
[1761538002397,0.56999003,114970.0,114960.0,0.08981901]
[1761538011228,0.2104746,114970.0,114960.0,0.08981901]
[1761538011650,0.56999003,114970.0,114960.0,0.08981901]
[1761538013188,0.2104746,114970.0,114960.0,0.08981901]